bitfinex/quotes_ETHUSD_20240709
["timestamp","ask_amount","ask_price","bid_price","bid_amount"]
[1720535768811,7.06918761,3080.7,3079.3,3.24744]
[1720535768996,7.06918761,3080.7,3079.4,0.519783]
[1720535769170,7.06918761,3080.7,3080.0,3.24673]
[1720535769370,7.06918761,3080.7,3079.5,2.4672]
[1720535769583,7.06918761,3080.7,3079.5,5.71445]
[1720535769811,7.06918761,3080.7,3079.6,3.06493]
[1720535770033,7.06918761,3080.7,3080.4,3.24633]
[1720535770189,7.06918761,3080.7,3080.5,3.0]
[1720535770811,7.06918761,3080.7,3080.3,3.0]
[1720535770981,7.06918761,3080.7,3080.3,6.24643]
[1720535771183,7.06918761,3080.7,3080.4,0.949296]
[1720535771804,7.06918761,3080.7,3080.4,4.195576]
[1720535771997,7.06918761,3080.7,3080.6,3.24612]
[1720535772400,7.06918761,3080.7,3080.6,8.78474]
[1720535772584,7.06918761,3080.7,3080.6,15.58086]
[1720535772780,6.7117473,3080.7,3080.6,17.55736775]
[1720535773113,6.7117473,3082.0,3081.9,3.24475]
[1720535773423,6.7117473,3083.4,3082.4,3.2442]
[1720535773627,2.3316,3084.5,3082.7,3.24388]
[1720535773780,2.3316,3084.5,3082.7,0.95528294]
[1720535773781,3.24253,3084.1,3082.7,0.95528294]
[1720535773978,3.429,3084.4,3082.8,0.06486857]
[1720535774216,3.24255,3084.0,3082.7,3.95528294]
[1720535774432,0.05213561,3083.9,3082.4,3.0]
[1720535774646,0.34811356,3083.8,3082.2,3.0]
[1720535774915,3.0,3083.8,3082.3,3.24431]
[1720535775113,3.0,3083.9,3082.4,3.06487241]
[1720535775431,0.40461091,3084.2,3082.5,3.24403]
[1720535775608,3.24223,3084.3,3082.6,6.24397]
[1720535775814,3.24244,3084.1,3082.6,3.0]
[1720535776021,3.24272,3083.9,3082.3,3.0]
[1720535776200,3.24272,3083.9,3082.2,6.24441]
[1720535776201,0.05213561,3083.8,3082.2,6.24441]
[1720535776384,0.32948556,3083.7,3082.3,0.624441]
[1720535776586,0.60213561,3083.6,3082.1,3.24453]
[1720535776786,3.24254,3084.0,3082.2,6.24442]
[1720535776988,3.55,3083.9,3082.2,6.90122222]
[1720535777195,3.60213561,3083.9,3082.2,6.90122222]
[1720535777428,3.0,3083.9,3082.3,1.0794509]
[1720535777601,3.24225,3084.3,3082.5,3.24404]
[1720535777796,3.24225,3084.3,3082.6,0.38926856]
[1720535777797,3.62943856,3084.2,3082.6,0.38926856]
[1720535777998,0.62943856,3084.2,3082.8,3.2438]
[1720535778303,2.3316,3084.5,3082.7,3.24383]
[1720535778304,2.3316,3084.5,3082.9,6.30851331]
[1720535778504,0.23316,3084.4,3083.2,3.24338]
[1720535778692,0.23316,3084.4,3083.3,3.06485466]
[1720535778899,3.2417,3084.8,3083.3,0.06485466]
[1720535779096,0.05213561,3084.7,3083.2,3.0]
[1720535779490,3.29396561,3084.7,3083.0,6.87438133]
[1720535779726,0.32938356,3084.6,3083.1,0.71094228]
[1720535780017,3.29416561,3084.5,3083.0,3.0]
[1720535780219,3.24252,3084.1,3082.9,3.23492151]
[1720535780519,5.62798561,3084.0,3082.9,3.23492151]
[1720535780825,2.38543561,3084.0,3082.9,3.23492151]
[1720535780993,2.3333,3084.0,3082.9,3.23492151]
[1720535781321,0.05213561,3083.9,3082.9,3.23492151]
[1720535781709,0.324235,3084.1,3083.0,0.06486832]
[1720535781901,3.0,3084.2,3083.0,0.32349215]
[1720535782422,6.7117473,3084.3,3083.0,0.32349215]
[1720535782423,6.7117473,3084.3,3083.1,3.24339]
[1720535782630,6.7117473,3084.3,3083.2,3.06485463]
[1720535782833,0.05213561,3084.2,3083.2,3.0]
[1720535783022,0.05213561,3084.2,3082.9,3.23492151]
[1720535783336,3.24254,3084.0,3082.9,3.23492151]
[1720535783535,0.05213561,3083.9,3082.9,3.23492151]
[1720535783835,0.67638829,3084.1,3082.9,6.47859151]
[1720535784036,6.7117473,3084.3,3083.0,0.06485886]
[1720535784193,6.7117473,3084.3,3083.0,3.06485886]
[1720535784619,6.7117473,3084.3,3083.0,3.0]
[1720535784811,0.67117473,3084.2,3082.9,3.0]
[1720535785138,3.29458561,3084.1,3082.9,3.0]
[1720535785355,0.05213561,3084.1,3082.6,4.42530954]
[1720535785645,6.67176,3083.8,3082.6,4.42530954]
[1720535785934,3.24317,3083.4,3082.5,3.23492151]
[1720535786104,3.2434,3083.2,3082.5,3.23492151]
[1720535786288,0.38168917,3083.1,3082.5,3.23492151]
[1720535786493,3.62517917,3083.1,3082.5,3.23492151]
[1720535786807,3.0,3083.0,3082.5,3.23492151]
[1720535787010,3.05213561,3083.0,3082.5,3.23492151]
[1720535787394,0.05213561,3083.0,3082.5,3.23492151]
[1720535787734,0.66251792,3082.9,3082.5,3.23492151]
[1720535787919,0.05213561,3082.8,3082.5,3.23492151]
[1720535788123,0.66251792,3082.9,3082.5,3.23492151]
[1720535788443,6.7117473,3083.3,3081.8,3.30966449]
[1720535788733,6.7117473,3083.3,3081.9,6.24465]
[1720535788898,0.72331034,3083.2,3081.9,3.0]
[1720535789098,0.72331034,3083.2,3081.8,3.0]
[1720535789434,3.96670034,3083.2,3081.8,3.0]
[1720535789633,3.2435,3083.1,3081.7,5.2986]
[1720535789819,1.06784476,3083.1,3081.8,0.97239095]
[1720535790028,0.67117473,3083.2,3081.8,7.28203754]
[1720535790194,6.7117473,3083.3,3081.8,4.03727754]
[1720535790393,6.7117473,3083.3,3082.2,3.2444]
[1720535790590,6.7117473,3083.3,3082.3,0.71375823]
[1720535790842,6.7117473,3083.3,3082.3,0.648884]
[1720535791141,6.7117473,3083.3,3082.3,0.06488099]
[1720535791495,6.7117473,3083.3,3082.5,3.2441]
[1720535791831,6.7117473,3083.3,3082.4,3.2442]
[1720535792033,6.7117473,3083.3,3082.5,0.648843]
[1720535792193,6.7117473,3083.3,3082.5,3.30897921]
[1720535792394,6.7117473,3083.3,3082.3,3.24426]
[1720535792615,6.7117473,3083.3,3082.4,3.0]
[1720535792989,6.7117473,3083.3,3082.2,3.0]
[1720535793305,0.05213561,3083.2,3082.1,3.0]
[1720535793826,6.7117473,3083.3,3082.1,3.0]
[1720535794133,0.67117473,3083.2,3082.1,3.0]
[1720535794338,6.7117473,3083.3,3082.2,0.06487988]
[1720535794636,6.7117473,3083.3,3082.2,3.24437]
[1720535794839,6.7117473,3083.3,3082.3,3.0]
[1720535795056,6.7117473,3083.3,3082.1,6.24447]
[1720535795347,6.7117473,3083.3,3082.2,0.68836563]
[1720535795496,6.7117473,3083.3,3082.4,3.24422]
[1720535795693,6.7117473,3083.3,3082.3,3.30917943]
[1720535795900,6.7117473,3083.3,3082.4,3.0]
[1720535796126,6.7117473,3083.3,3082.3,0.06487644]
[1720535796336,6.7117473,3083.3,3082.3,3.0]
[1720535796536,6.7117473,3083.3,3082.4,0.68679022]
[1720535796853,6.7117473,3083.3,3083.1,3.2434]
[1720535797164,6.7117473,3083.3,3083.2,6.24338]
[1720535797289,6.7117473,3083.8,3083.2,3.0]
[1720535797493,6.7117473,3083.8,3082.9,3.23492151]
[1720535797745,7.74452803,3083.8,3083.0,3.0]
[1720535798210,0.05213561,3083.7,3082.8,4.42530954]
[1720535798638,10.23032803,3083.8,3082.8,4.42530954]
[1720535798811,1.0230328,3083.7,3082.8,4.42530954]
[1720535799811,3.29518561,3083.6,3082.3,3.24]
[1720535800049,3.29518561,3083.6,3082.4,3.0]
[1720535800050,3.24308,3083.5,3082.4,3.0]
[1720535800221,0.05213561,3083.4,3081.9,3.23492151]
[1720535800858,3.24371,3082.9,3081.9,3.23492151]
[1720535801071,0.05213561,3082.8,3081.9,3.23492151]
[1720535801356,3.24408,3082.6,3081.2,2.4664]
[1720535801556,6.76388291,3082.5,3081.2,2.4664]
[1720535801719,6.7117473,3082.5,3081.2,2.4664]
[1720535801916,0.05213561,3082.4,3080.9,3.24571]
[1720535802129,6.7117473,3082.5,3080.9,1.15552004]
[1720535802312,6.7117473,3082.5,3081.1,3.2455]
[1720535802516,6.7117473,3082.5,3081.1,3.24558]
[1720535802776,6.7117473,3082.5,3081.1,3.31047882]
[1720535803075,6.7117473,3082.5,3081.3,2.2665]
[1720535803290,6.7117473,3082.5,3081.5,3.752]
[1720535803576,6.7117473,3082.5,3081.7,3.24491]
[1720535803717,6.7117473,3082.5,3081.8,3.30973554]
[1720535803913,6.7117473,3082.5,3081.9,3.0]
[1720535804117,6.7117473,3082.8,3082.0,0.69585907]
[1720535804317,6.7117473,3082.8,3082.3,3.24431]
[1720535804581,6.7117473,3082.8,3082.0,0.06488552]
[1720535804582,6.7117473,3082.8,3082.0,6.752]
[1720535805481,6.7117473,3082.8,3082.1,3.24447]
[1720535805797,6.7117473,3082.8,3082.2,3.999647]
[1720535806081,6.7117473,3082.8,3082.2,3.0]
[1720535806290,6.7117473,3082.8,3081.9,3.23492151]
[1720535806291,6.7117473,3082.8,3082.0,6.30949958]
[1720535806442,6.7117473,3082.8,3082.0,9.55406958]
[1720535806991,6.7117473,3082.8,3082.0,6.30944958]
[1720535807223,6.7117473,3082.8,3082.0,4.72144806]
[1720535807968,6.7117473,3082.8,3082.0,8.03096932]
[1720535808209,6.7117473,3082.8,3082.0,4.72144806]
[1720535808914,6.7117473,3082.8,3082.0,8.03095887]
[1720535809428,6.7117473,3082.8,3082.0,8.03087887]
[1720535809567,6.7117473,3082.8,3082.1,4.37111004]
[1720535809774,6.7117473,3082.8,3082.2,3.0]
[1720535809999,6.7117473,3082.8,3082.0,3.0]
[1720535810575,6.7117473,3082.8,3082.0,6.30950936]
[1720535810913,6.7117473,3082.8,3082.0,9.55406936]
[1720535811079,6.7117473,3082.8,3082.3,3.24427]
[1720535811283,6.7117473,3082.8,3082.4,0.0648741]
[1720535812099,6.7117473,3082.8,3082.2,3.24441]
[1720535812277,6.7117473,3082.8,3082.3,3.0]
[1720535812483,6.7117473,3082.8,3082.0,3.0]
[1720535812704,7.38292203,3082.8,3082.0,3.0]
[1720535812907,6.7117473,3082.8,3082.0,3.0]
[1720535813271,6.7117473,3082.8,3082.0,3.06488215]
[1720535813486,6.7117473,3082.8,3082.1,3.24446]
[1720535813779,6.7117473,3082.8,3082.3,2.3583]
[1720535813984,6.7117473,3082.8,3082.6,3.24393]
[1720535814206,3.61606002,3083.2,3082.6,3.24393]
[1720535815384,3.61606002,3083.2,3082.4,0.6175176]
[1720535815590,0.05213561,3083.1,3082.4,3.0]
[1720535815904,3.61606002,3083.2,3082.3,3.0]
[1720535816083,3.61606002,3083.2,3082.4,3.24414]
[1720535816281,3.61606002,3083.2,3082.5,3.0]
[1720535816480,3.61606002,3083.2,3082.3,3.324442]
[1720535816481,3.61606002,3083.2,3082.3,3.0]
[1720535816708,3.61606002,3083.2,3082.3,0.3]
[1720535816904,3.61606002,3083.2,3082.4,0.06487725]
[1720535817205,3.61606002,3083.2,3082.4,3.24419]
[1720535817504,3.61606002,3083.2,3082.5,0.06487172]
[1720535817713,3.61606002,3083.2,3082.7,3.24385]
[1720535818027,3.61606002,3083.2,3082.8,0.06486577]
[1720535819825,6.7117473,3083.6,3082.8,0.06486577]
[1720535820856,6.7117473,3083.6,3083.1,3.24341]
[1720535821142,6.7117473,3083.6,3083.4,3.24314]
[1720535821346,6.7117473,3083.6,3083.5,3.0]
[1720535821625,6.7117473,3084.1,3083.9,3.24263]
[1720535821944,6.7117473,3084.1,3083.6,0.63079945]
[1720535822103,6.7117473,3084.1,3083.5,3.24297]
[1720535822278,6.7117473,3084.1,3083.7,3.24283]
[1720535822713,6.7117473,3084.1,3083.8,3.0]
[1720535822931,6.7117473,3084.1,3083.6,3.0]
[1720535823379,6.7117473,3084.1,3083.3,6.24326]
[1720535823683,6.7117473,3084.1,3083.3,3.0]
[1720535823888,6.7117473,3084.1,3083.2,0.324341]
[1720535823889,6.7117473,3084.1,3083.1,3.23492151]
[1720535824654,6.7117473,3084.1,3083.2,3.24338]
[1720535825043,6.7117473,3084.1,3083.3,0.06484929]
[1720535825181,6.7117473,3084.1,3083.6,6.48575]
[1720535825382,6.7117473,3084.1,3083.7,3.0]
[1720535825693,12.15,3084.4,3083.7,3.624286]
[1720535825915,6.7117473,3084.5,3083.5,3.0]
[1720535826112,6.7117473,3084.5,3083.6,3.867207]
[1720535826353,6.7117473,3084.5,3083.8,3.24268]
[1720535826508,6.7117473,3084.5,3083.9,0.06484039]
[1720535826701,6.7117473,3084.5,3083.9,3.06484039]
[1720535826940,6.7117473,3084.5,3083.9,6.30743039]
[1720535827260,6.7117473,3084.5,3084.0,0.63074304]
[1720535827432,6.7117473,3084.5,3084.1,0.0648401]
[1720535828253,3.61606002,3084.8,3084.3,3.24218]
[1720535828434,3.61606002,3084.8,3084.1,6.48476]
[1720535828621,3.61606002,3084.8,3084.2,3.7115503]
[1720535828823,3.61606002,3084.8,3084.3,3.24216]
[1720535829540,3.61606002,3084.8,3084.4,3.24208]
[1720535829744,6.7117473,3085.2,3085.1,3.24138]
[1720535830048,3.61606002,3085.5,3085.1,3.24138]
[1720535830205,3.61606002,3085.5,3085.2,0.06481681]
[1720535830521,3.61606002,3085.5,3085.2,3.30608681]
[1720535830718,3.61606002,3085.5,3085.2,0.06481681]
[1720535830919,3.61606002,3085.5,3085.1,6.24131]
[1720535831126,3.61606002,3085.5,3085.2,0.06481682]
[1720535831608,3.61606002,3085.5,3085.4,6.48214]
[1720535831806,7.7287522,3085.7,3085.6,3.24086]
[1720535832939,7.7287522,3085.7,3085.6,8.86572]
[1720535832940,6.7117473,3085.7,3085.6,8.86572]
[1720535833137,5.73479669,3086.2,3086.1,6.48066]
[1720535833375,5.73479669,3086.7,3086.6,6.47962]
[1720535833551,5.73479669,3086.7,3086.2,5.62415]
[1720535833873,5.73479669,3086.7,3086.6,3.0]
[1720535834175,3.35968818,3087.0,3086.0,7.66023105]
[1720535834460,0.33596882,3086.9,3086.0,3.23492151]
[1720535834625,3.35968818,3087.0,3086.0,3.23492151]
[1720535834826,3.35968818,3087.0,3086.0,6.47534151]
[1720535835027,3.35968818,3087.0,3086.1,0.06479419]
[1720535835226,3.35968818,3087.0,3086.3,3.24004]
[1720535835465,3.35968818,3087.0,3086.0,3.23492151]
[1720535835772,3.35968818,3087.0,3086.1,3.0]
[1720535836067,3.35968818,3087.0,3086.0,3.56489308]
[1720535836068,0.05213561,3086.9,3086.0,3.23492151]
[1720535836211,3.35968818,3087.0,3086.0,3.23492151]
[1720535836412,4.59307767,3087.0,3086.0,3.23492151]
[1720535836721,3.35968818,3087.0,3086.1,2.52320433]
[1720535836916,3.35968818,3087.0,3086.2,3.0]
[1720535837259,3.35968818,3087.0,3086.3,0.06479073]
[1720535837413,3.35968818,3087.0,3086.3,3.30489073]
[1720535837615,3.35968818,3087.0,3086.4,0.65451007]
[1720535837816,3.35968818,3087.0,3086.2,3.0]
[1720535838118,0.05213561,3086.9,3086.2,3.0]
[1720535838915,5.73479669,3086.7,3086.2,3.0]
[1720535839116,5.73479669,3086.7,3086.0,3.23492151]
[1720535839117,0.57347967,3086.6,3086.0,3.23492151]
[1720535839354,3.29205561,3086.5,3086.0,3.23492151]
[1720535839523,6.24005,3086.4,3086.0,3.23492151]
[1720535839731,3.29226561,3086.3,3086.0,3.23492151]
[1720535840047,0.95323156,3086.2,3086.0,3.23492151]
[1720535840225,5.73479669,3086.4,3086.0,3.23492151]
[1720535840570,5.73479669,3086.4,3085.0,0.06481184]
[1720535840862,6.30827636,3086.4,3085.1,3.24132]
[1720535841073,6.30827636,3086.4,3085.2,3.06481014]
[1720535841371,6.30827636,3086.4,3085.1,3.06481014]
[1720535841579,6.30827636,3086.4,3085.3,3.30591477]
[1720535841580,5.73479669,3086.4,3085.3,3.30591477]
[1720535841878,5.73479669,3086.4,3085.4,3.0]
[1720535842028,5.73479669,3086.4,3085.5,0.06480549]
[1720535842229,5.73479669,3086.4,3085.7,3.24074]
[1720535842455,5.73479669,3086.4,3085.8,3.0]
[1720535842673,5.73479669,3086.4,3085.6,6.54728055]
[1720535842980,5.73479669,3086.4,3085.8,3.24062]
[1720535843134,5.73479669,3086.4,3085.9,0.06479905]
[1720535843499,6.04016002,3087.4,3086.0,0.55]
[1720535843649,2.4241,3087.4,3085.7,6.96018108]
[1720535843843,0.05213561,3087.3,3085.8,0.39612086]
[1720535844195,0.05213561,3087.3,3085.7,0.65472805]
[1720535844401,5.8531,3087.4,3085.7,0.65472805]
[1720535844402,5.71527561,3087.4,3085.7,0.65472805]
[1720535844541,2.4241,3087.4,3085.7,0.65472805]
[1720535844747,3.00161193,3087.4,3085.9,3.24053]
[1720535845049,5.4241,3087.4,3085.8,3.66081686]
[1720535845246,0.05213561,3087.3,3086.0,3.0]
[1720535845501,0.05213561,3087.3,3085.7,0.65472805]
[1720535845807,0.05213561,3087.3,3085.6,0.30648055]
[1720535846103,0.05213561,3087.3,3085.4,2.4632]
[1720535846104,3.23972,3086.7,3085.4,2.4632]
[1720535846260,0.05213561,3086.6,3084.9,3.752]
[1720535846461,2.4817,3086.4,3085.0,0.06480998]
[1720535846677,2.4817,3086.4,3085.2,0.32997315]
[1720535846853,0.323972,3086.6,3085.3,0.06481647]
[1720535847051,3.24003,3086.4,3085.2,0.32997315]
[1720535847617,2.4817,3087.0,3085.3,0.06481584]
[1720535847828,0.05213561,3086.9,3085.2,0.32997315]
[1720535847964,3.23982,3086.6,3085.3,0.35648947]
[1720535848303,0.55338356,3086.8,3085.3,0.35648947]
[1720535848486,3.24006,3086.4,3085.2,3.0]
[1720535848669,0.05213561,3086.3,3084.8,3.0]
[1720535848868,0.05213561,3086.3,3084.7,2.4052]
[1720535848869,3.2403,3086.2,3084.7,2.4052]
[1720535849164,3.38137917,3086.1,3084.7,2.4052]
[1720535849370,3.24066,3085.8,3084.1,5.68305]
[1720535849551,0.05213561,3085.7,3084.2,3.24232]
[1720535849777,11.41655669,3085.9,3084.2,3.24232]
[1720535849976,8.17599669,3085.9,3084.3,3.24222]
[1720535850182,8.17599669,3085.9,3084.4,3.24207]
[1720535850518,5.73479669,3085.9,3084.8,3.24162]
[1720535850685,5.73479669,3085.9,3085.2,0.06481588]
[1720535851100,5.73479669,3085.9,3085.2,3.30600588]
[1720535851427,5.73479669,3085.9,3085.3,3.24117]
[1720535851773,5.73479669,3085.9,3085.2,3.24119]
[1720535852001,5.73479669,3085.9,3085.3,0.88828115]
[1720535852402,4.53185123,3085.9,3085.6,3.24085]
[1720535852586,4.53185123,3085.9,3085.7,3.0648053]
[1720535852773,4.53185123,3085.9,3085.7,6.3055053]
[1720535853000,4.53185123,3085.9,3085.8,0.95463553]
[1720535853200,4.53185123,3086.4,3085.6,3.0]
[1720535853427,4.53185123,3086.4,3085.3,0.88828115]
[1720535853581,4.53185123,3086.4,3085.3,0.95309325]
[1720535853780,4.53185123,3086.4,3085.4,0.39530933]
[1720535853996,4.53185123,3086.4,3085.4,3.39530933]
[1720535854408,4.53185123,3086.4,3085.4,3.46011579]
[1720535854681,4.53185123,3086.4,3085.6,3.24081]
[1720535854886,4.53185123,3086.4,3085.7,3.06480014]
[1720535855125,4.53185123,3086.4,3085.8,0.69536115]
[1720535855325,4.53185123,3086.4,3085.8,0.69536117]
[1720535856037,12.15,3086.6,3086.0,3.24043]
[1720535856246,4.53185123,3086.7,3086.4,3.23996]
[1720535856554,4.53185123,3086.7,3086.6,3.23981]
[1720535856706,4.53185123,3086.7,3086.4,3.23994]
[1720535857065,4.53185123,3086.7,3086.5,0.323994]
[1720535857363,4.53185123,3086.7,3086.2,3.24017]
[1720535857364,4.53185123,3086.7,3086.3,6.24011]
[1720535857647,4.53185123,3086.7,3086.3,3.0]
[1720535857856,4.53185123,3086.7,3086.2,3.0]
[1720535858169,4.53185123,3086.7,3086.2,4.30496445]
[1720535859226,4.53185123,3086.7,3086.3,3.24011]
[1720535859430,4.53185123,3086.7,3086.4,3.0]
[1720535859606,4.53185123,3086.7,3086.4,0.73049645]
[1720535859814,0.05213561,3086.6,3086.1,3.23492151]
[1720535860060,4.53185123,3087.1,3086.1,3.23492151]
[1720535860061,0.05213561,3087.0,3086.1,3.23492151]
[1720535860278,0.05213561,3086.9,3086.1,3.23492151]
[1720535860555,4.53185123,3087.1,3086.1,3.23492151]
[1720535860710,0.05213561,3087.0,3086.1,3.23492151]
[1720535861324,4.53185123,3087.1,3086.1,3.23492151]
[1720535861754,7.77114123,3087.1,3086.1,3.23492151]
[1720535862052,2.31603912,3087.0,3086.1,3.23492151]
[1720535862216,2.4308,3086.9,3086.1,3.23492151]
[1720535862574,0.05213561,3086.8,3086.1,3.23492151]
[1720535863632,5.67036,3086.9,3086.1,3.23492151]
[1720535863633,2.4308,3086.9,3086.1,3.23492151]
[1720535863833,0.47468391,3086.8,3086.1,3.23492151]
[1720535864103,3.0,3087.0,3086.1,3.23492151]
[1720535864371,3.24003,3086.4,3084.9,2.3546]
[1720535864588,1.17465486,3086.9,3085.0,3.23492151]
[1720535864589,4.53185123,3086.2,3085.0,3.23492151]
[1720535864801,4.53185123,3086.2,3085.0,6.47634151]
[1720535864967,4.53185123,3086.2,3085.1,0.06481232]
[1720535865148,4.53185123,3086.2,3085.2,3.2412]
[1720535865484,4.53185123,3086.2,3085.2,6.48242]
[1720535865783,4.53185123,3086.2,3085.3,3.30597813]
[1720535866079,4.53185123,3086.2,3085.5,3.24095]
[1720535866288,4.53185123,3086.2,3085.6,0.38889923]
[1720535866488,4.53185123,3086.5,3085.6,3.38889923]
[1720535866898,4.53185123,3086.5,3085.8,3.24059]
[1720535867062,4.53185123,3086.5,3085.6,3.324095]
[1720535867601,4.53185123,3086.5,3085.6,0.324095]
[1720535867794,4.53185123,3086.5,3085.7,0.3324095]
[1720535868150,4.53185123,3086.5,3085.7,3.24075]
[1720535868548,4.53185123,3086.5,3085.4,3.24105]
[1720535868798,4.53185123,3086.5,3085.5,3.0]
[1720535869465,4.53185123,3086.5,3085.5,2.605615]
[1720535869815,4.58398684,3086.5,3085.1,0.58249815]
[1720535869949,1.66818512,3086.4,3085.1,0.58249815]
[1720535870155,0.05213561,3086.3,3085.1,0.58249815]
[1720535870357,0.05213561,3086.3,3085.0,3.23492151]
[1720535870593,3.29241561,3086.2,3085.0,3.23492151]
[1720535870759,3.24033,3086.1,3085.0,3.23492151]
[1720535870957,3.89360456,3086.1,3085.0,3.23492151]
[1720535871170,3.94574017,3086.1,3085.0,3.23492151]
[1720535871357,3.89360456,3086.1,3085.0,3.23492151]
[1720535871561,3.24029,3086.2,3085.0,3.23492151]
[1720535871890,0.05213561,3086.1,3085.1,3.0]
[1720535872656,3.29249561,3086.1,3085.1,3.0]
[1720535872867,3.89377856,3086.0,3085.0,3.23492151]
[1720535873093,0.05213561,3085.9,3085.0,3.23492151]
[1720535873401,3.24081,3085.7,3085.0,3.23492151]
[1720535873561,3.24063,3085.9,3085.0,3.23492151]
[1720535873757,3.24076,3085.7,3085.0,3.23492151]
[1720535873962,0.05213561,3085.6,3085.0,3.23492151]
[1720535874200,3.63527042,3085.8,3085.0,3.23492151]
[1720535874492,0.39459042,3085.8,3085.0,3.23492151]
[1720535874693,0.65327856,3086.0,3085.0,3.23492151]
[1720535874899,3.24066,3085.8,3085.0,3.23492151]
[1720535875103,0.70541417,3086.0,3084.5,3.0]
[1720535875104,3.94590417,3086.0,3084.5,3.0]
[1720535875267,4.53185123,3085.8,3084.6,0.54275]
[1720535875613,4.53185123,3085.8,3084.5,3.0]
[1720535875614,3.29295561,3085.7,3084.5,3.0]
[1720535875769,1.10655168,3085.6,3084.4,5.4275]
[1720535876106,1.10655168,3085.6,3084.4,2.4275]
[1720535876599,4.53185123,3085.8,3084.4,5.66961]
[1720535876905,4.53185123,3085.8,3084.5,3.0]
[1720535877196,4.53185123,3085.8,3084.6,3.24184]
[1720535877505,0.05213561,3085.7,3084.5,3.0]
[1720535877702,0.45839868,3085.6,3084.5,0.866972]
[1720535877882,0.45839868,3085.6,3084.5,3.866972]
[1720535878087,0.05213561,3085.5,3084.5,3.866972]
[1720535878407,3.29309561,3085.5,3084.5,3.0]
[1720535878562,0.05213561,3085.5,3084.5,3.0]
[1720535878936,4.53185123,3085.8,3084.6,0.54275]
[1720535879081,4.53185123,3085.8,3084.4,2.4275]
[1720535879493,4.53185123,3085.8,3084.4,5.4275]
[1720535879680,7.77257123,3085.8,3084.4,5.4275]
[1720535879917,7.77257123,3085.8,3084.4,2.4275]
[1720535880091,1.10131312,3085.7,3084.4,2.4275]
[1720535880426,4.53185123,3085.8,3084.6,3.24189]
[1720535880615,4.53185123,3085.8,3084.7,3.06481992]
[1720535880814,4.53185123,3085.8,3084.8,0.06481998]
[1720535881450,4.53185123,3085.8,3085.1,3.24132]
[1720535881592,4.53185123,3085.8,3085.2,3.605432]
[1720535881923,12.15,3086.0,3085.3,2.31931143]
[1720535882636,12.15,3086.0,3085.3,2.2545]
[1720535884340,0.05213561,3085.9,3084.7,4.15823798]
[1720535884631,3.24066,3085.8,3084.2,3.24226]
[1720535884807,4.53185123,3085.6,3084.3,1.01338695]
[1720535885011,0.05213561,3085.5,3084.3,1.01338695]
[1720535885211,0.45839868,3085.4,3084.3,1.01338695]
[1720535885417,0.51053429,3085.4,3084.3,1.01338695]
[1720535885619,3.75163429,3085.4,3084.1,6.89160954]
[1720535885844,3.75163429,3085.4,3084.1,2.4663]
[1720535886059,0.51053429,3085.4,3084.1,2.4663]
[1720535886204,0.45839868,3085.4,3084.1,2.4663]
[1720535886405,0.42729104,3085.3,3084.1,3.337192]
[1720535886605,0.42729104,3085.3,3084.2,3.0]
[1720535886805,0.37515543,3085.3,3084.2,3.0]
[1720535887063,4.53185123,3085.6,3084.3,0.06483768]
[1720535887420,0.05213561,3085.5,3084.2,3.0]
[1720535887778,3.2412,3085.3,3083.9,3.0]
[1720535888084,0.45839868,3085.4,3084.0,3.23492151]
[1720535888085,5.62815,3085.0,3084.0,3.23492151]
[1720535888218,3.24187,3084.7,3084.0,3.23492151]
[1720535888421,3.24215,3084.4,3084.1,0.162]
[1720535888789,0.05213561,3084.3,3084.1,0.162]
[1720535889448,0.05213561,3084.2,3084.1,0.162]
[1720535890014,0.05213561,3084.2,3082.3,2.4146]
[1720535890015,13.55441684,3084.2,3082.3,2.4146]
[1720535890134,13.55441684,3084.2,3081.8,1.00142369]
[1720535890135,3.24319,3083.4,3082.4,1.65069333]
[1720535890334,3.24319,3083.4,3082.1,3.23492151]
[1720535890335,3.24344,3083.2,3082.1,3.23492151]
[1720535890579,3.29557561,3083.2,3082.2,1.65077485]
[1720535890968,3.24352,3083.1,3082.2,1.65077485]
[1720535891135,5.57657561,3083.2,3081.3,3.24528]
[1720535891136,3.29579561,3083.0,3081.3,2.3668]
[1720535891339,4.53185123,3082.7,3081.4,5.58501534]
[1720535891581,4.53185123,3082.7,3081.5,1.65086583]
[1720535891887,4.53185123,3082.7,3081.6,0.72358812]
[1720535892094,0.05213561,3082.6,3081.7,1.65086583]
[1720535892405,4.53185123,3082.7,3081.7,1.65086583]
[1720535892406,4.53185123,3082.7,3082.0,3.24463]
[1720535892562,4.53185123,3082.7,3082.1,1.97532883]
[1720535892756,0.05213561,3082.6,3081.6,0.72358812]
[1720535893066,0.05213561,3082.6,3081.7,1.65084203]
[1720535893376,0.05213561,3082.6,3081.7,1.88828504]
[1720535893584,4.53185123,3082.7,3081.8,1.65084203]
[1720535894064,4.53185123,3082.7,3081.9,0.06488309]
[1720535894233,4.53185123,3082.7,3082.0,1.65084203]
[1720535894434,4.53185123,3082.7,3082.1,0.17157251]
[1720535894699,4.53185123,3082.7,3082.1,0.23645183]
[1720535894976,4.53185123,3082.7,3082.1,0.17157251]
[1720535895190,4.69385123,3082.7,3082.1,0.17157251]
[1720535895337,4.69385123,3082.7,3081.9,3.24474]
[1720535895538,4.69385123,3082.7,3082.0,0.06487767]
[1720535895738,4.69385123,3082.7,3082.1,2.3309]
[1720535895938,4.69385123,3082.7,3082.1,5.3309]
[1720535896169,4.69385123,3082.7,3082.2,3.24442]
[1720535896349,4.69385123,3082.7,3082.3,3.06487612]
[1720535896741,4.69385123,3082.7,3082.3,3.0]
[1720535897049,4.69385123,3082.7,3082.1,5.3309]
[1720535897254,0.05213561,3082.6,3081.7,3.23744301]
[1720535897468,4.69385123,3082.7,3081.8,2.06394863]
[1720535897672,4.69385123,3082.7,3081.9,3.24472]
[1720535897871,4.69385123,3082.7,3082.0,3.43066422]
[1720535898201,4.69385123,3082.7,3082.1,3.0]
[1720535898401,4.69385123,3082.7,3082.2,0.0648768]
[1720535898579,4.69385123,3082.7,3081.8,0.3482353]
[1720535898780,0.05213561,3082.6,3081.8,0.3482353]
[1720535898946,0.05213561,3082.6,3081.6,3.0]
[1720535899153,4.69385123,3082.7,3081.5,2.3779]
[1720535899390,4.69385123,3082.7,3081.6,1.6508735]
[1720535899591,4.69385123,3082.7,3081.5,2.3779]
[1720535899797,0.46938512,3082.6,3081.5,2.3779]
[1720535900405,4.69385123,3082.7,3081.6,0.06489053]